[Event "NK ABC Kwalificatie 2"]
[Site "Zoetermeer, Netherlands"]
[Date "????.??.??"]
[Round "7.12"]
[White "Etienne, Ghilon"]
[Black "Koppenens, Oscar"]
[Result "0-1"]
[TimeControl "55+10"]
[WhiteFideId "8852118"]
[BlackFideId "8863833"]
[WhiteElo "1901"]
[BlackElo "1948"]

1. e4 {[%clk 00:55:07]} {[%emt 00:00:12]} c5 {[%clk 00:55:17]} {[%emt
00:00:04]} 2. Nf3 {[%clk 00:55:13]} {[%emt 00:00:04]} d6 {[%clk 00:55:24]}
{[%emt 00:00:04]} 3. d4 {[%clk 00:55:20]} {[%emt 00:00:03]} cxd4 {[%clk
00:55:31]} {[%emt 00:00:03]} 4. Nxd4 {[%clk 00:55:26]} {[%emt 00:00:04]} Nf6
{[%clk 00:55:38]} {[%emt 00:00:03]} 5. Nc3 {[%clk 00:55:31]} {[%emt 00:00:04]}
a6 {[%clk 00:55:45]} {[%emt 00:00:04]} 6. f3 {[%clk 00:55:35]} {[%emt
00:00:06]} e6 {[%clk 00:55:39]} {[%emt 00:00:16]} 7. Be3 {[%clk 00:55:41]}
{[%emt 00:00:04]} Be7 {[%clk 00:55:43]} {[%emt 00:00:05]} 8. Qd2 {[%clk
00:55:45]} {[%emt 00:00:07]} Qc7 {[%clk 00:55:37]} {[%emt 00:00:16]} 9. Be2
{[%clk 00:55:41]} {[%emt 00:00:14]} Nbd7 {[%clk 00:55:26]} {[%emt 00:00:21]} 10.
O-O {[%clk 00:55:33]} {[%emt 00:00:18]} b5 {[%clk 00:55:12]} {[%emt 00:00:24]}
11. Kh1 {[%clk 00:53:30]} {[%emt 00:02:13]} Bb7 {[%clk 00:54:59]} {[%emt
00:00:23]} 12. a3 {[%clk 00:51:50]} {[%emt 00:01:50]} O-O {[%clk 00:54:29]}
{[%emt 00:00:40]} 13. Rfd1 {[%clk 00:50:52]} {[%emt 00:01:07]} Rfd8 {[%clk
00:54:02]} {[%emt 00:00:37]} 14. Rac1 {[%clk 00:48:48]} {[%emt 00:02:14]} Nb6
{[%clk 00:53:15]} {[%emt 00:00:57]} 15. Qe1 {[%clk 00:44:56]} {[%emt 00:04:02]}
Rac8 {[%clk 00:50:44]} {[%emt 00:02:41]} 16. Qf2 {[%clk 00:44:33]} {[%emt
00:00:33]} Nc4 {[%clk 00:46:17]} {[%emt 00:04:37]} 17. Bxc4 {[%clk 00:44:38]}
{[%emt 00:00:05]} Qxc4 {[%clk 00:46:13]} {[%emt 00:00:14]} 18. Nb3 {[%clk
00:43:54]} {[%emt 00:00:54]} Rd7 {[%clk 00:44:44]} {[%emt 00:01:40]} 19. Bb6
{[%clk 00:40:40]} {[%emt 00:03:24]} Rb8 {[%clk 00:42:05]} {[%emt 00:02:48]} 20.
Na5 {[%clk 00:40:03]} {[%emt 00:00:48]} Qc8 {[%clk 00:42:07]} {[%emt 00:00:07]}
21. Ba7 {[%clk 00:39:29]} {[%emt 00:00:45]} Ra8 {[%clk 00:42:04]} {[%emt
00:00:12]} 22. Bd4 {[%clk 00:38:43]} {[%emt 00:00:57]} e5 {[%clk 00:37:17]}
{[%emt 00:04:57]} 23. Be3 {[%clk 00:35:16]} {[%emt 00:03:36]} d5 {[%clk
00:36:18]} {[%emt 00:01:09]} 24. exd5 {[%clk 00:34:55]} {[%emt 00:00:32]} Nxd5
{[%clk 00:35:39]} {[%emt 00:00:49]} 25. Nxd5 {[%clk 00:34:21]} {[%emt
00:00:43]} Rxd5 {[%clk 00:33:26]} {[%emt 00:02:22]} 26. Rxd5 {[%clk 00:33:59]}
{[%emt 00:00:34]} Bxd5 {[%clk 00:33:28]} {[%emt 00:00:08]} 27. Rd1 {[%clk
00:33:40]} {[%emt 00:00:29]} Qe6 {[%clk 00:33:01]} {[%emt 00:00:36]} 28. Qd2
{[%clk 00:33:25]} {[%emt 00:00:25]} Rd8 {[%clk 00:31:57]} {[%emt 00:01:15]} 29.
Nb7 {[%clk 00:32:08]} {[%emt 00:01:27]} Rd7 {[%clk 00:32:01]} {[%emt 00:00:06]}
30. Nc5 {[%clk 00:30:21]} {[%emt 00:01:57]} Bxc5 {[%clk 00:32:07]} {[%emt
00:00:04]} 31. Bxc5 {[%clk 00:30:26]} {[%emt 00:00:04]} e4 {[%clk 00:28:45]}
{[%emt 00:03:33]} 32. fxe4 {[%clk 00:29:38]} {[%emt 00:00:58]} Bc6 {[%clk
00:27:11]} {[%emt 00:01:43]} 33. Qc1 {[%clk 00:27:16]} {[%emt 00:02:32]} Qxe4
{[%clk 00:27:06]} {[%emt 00:00:15]} 34. Rg1 {[%clk 00:27:19]} {[%emt 00:00:08]}
Rd5 {[%clk 00:26:43]} {[%emt 00:00:33]} 35. Bb6 {[%clk 00:24:47]} {[%emt
00:02:42]} Rh5 {[%clk 00:26:11]} {[%emt 00:00:41]} 36. Qd2 {[%clk 00:23:39]}
{[%emt 00:01:18]} Rxh2+ {[%clk 00:26:11]} {[%emt 00:00:10]} 37. Kxh2 {[%clk
00:23:41]} {[%emt 00:00:09]} Qh4# {[%clk 00:26:17]} {[%emt 00:00:03]} 0-1

[Event "NK ABC Kwalificatie 2"]
[Site "Zoetermeer, Netherlands"]
[Date "????.??.??"]
[Round "7.13"]
[White "Thijssen, Freek"]
[Black "Mittal, Aashray"]
[Result "*"]
[TimeControl "55+10"]
[WhiteFideId "8806479"]
[BlackFideId "8924784"]
[WhiteElo "1889"]
[BlackElo "1889"]

1. e4 {[%clk 00:55:18]} {[%emt 00:00:02]} c5 {[%clk 00:55:20]} 2. Nf3 {[%clk
00:55:23]} {[%emt 00:00:04]} d6 {[%clk 00:55:29]} {[%emt 00:00:01]} 3. d4
{[%clk 00:55:29]} {[%emt 00:00:05]} cxd4 {[%clk 00:55:38]} {[%emt 00:00:01]} 4.
Nxd4 {[%clk 00:55:35]} {[%emt 00:00:03]} Nf6 {[%clk 00:55:42]} {[%emt
00:00:06]} 5. Nc3 {[%clk 00:55:44]} g6 {[%clk 00:55:45]} {[%emt 00:00:06]} 6.
Be3 {[%clk 00:55:49]} {[%emt 00:00:06]} Bg7 {[%clk 00:55:51]} {[%emt 00:00:05]}
7. f3 {[%clk 00:55:55]} {[%emt 00:00:04]} O-O {[%clk 00:55:57]} {[%emt
00:00:04]} 8. Qd2 {[%clk 00:56:03]} {[%emt 00:00:02]} Nc6 {[%clk 00:56:03]}
{[%emt 00:00:04]} 9. g4 {[%clk 00:56:09]} {[%emt 00:00:03]} h5 {[%clk
00:55:57]} {[%emt 00:00:16]} 10. gxh5 {[%clk 00:53:02]} {[%emt 00:03:17]} Nxh5
{[%clk 00:56:06]} 11. O-O-O {[%clk 00:51:29]} {[%emt 00:01:43]} a6 {[%clk
00:52:17]} {[%emt 00:03:59]} 12. Nxc6 {[%clk 00:40:57]} {[%emt 00:10:42]} bxc6
{[%clk 00:52:27]} 13. Bh6 {[%clk 00:40:39]} {[%emt 00:00:28]} Qa5 {[%clk
00:44:32]} {[%emt 00:08:04]} 14. Bxg7 {[%clk 00:39:26]} {[%emt 00:01:22]} Kxg7
{[%clk 00:44:39]} {[%emt 00:00:04]} 15. f4 {[%clk 00:32:12]} {[%emt 00:07:23]}
Bg4 {[%clk 00:43:15]} {[%emt 00:01:35]} 16. Re1 {[%clk 00:32:04]} {[%emt
00:00:18]} Rab8 {[%clk 00:42:09]} {[%emt 00:01:16]} 17. Bc4 {[%clk 00:23:53]}
{[%emt 00:08:21]} Qb4 {[%clk 00:32:20]} {[%emt 00:09:58]} 18. Bb3 {[%clk
00:21:19]} {[%emt 00:02:45]} Be6 {[%clk 00:30:22]} {[%emt 00:02:08]} 19. f5
{[%clk 00:19:21]} {[%emt 00:02:08]} Bxb3 {[%clk 00:30:24]} {[%emt 00:00:07]} 20.
axb3 {[%clk 00:18:48]} {[%emt 00:00:44]} Qc5 {[%clk 00:25:02]} {[%emt
00:05:31]} 21. Rhg1 {[%clk 00:13:43]} {[%emt 00:05:16]} *

[Event "NK ABC Kwalificatie 2"]
[Site "Zoetermeer, Netherlands"]
[Date "????.??.??"]
[Round "7.14"]
[White "Los, Evan"]
[Black "Ten Dam, Bram"]
[Result "0-1"]
[TimeControl "55+10"]
[WhiteFideId "8887274"]
[BlackFideId "8975340"]
[WhiteElo "1799"]
[BlackElo "2013"]

1. Nf3 {[%clk 00:54:58]} {[%emt 00:00:21]} Nf6 {[%clk 00:54:55]} {[%emt
00:00:25]} 2. g3 {[%clk 00:54:58]} {[%emt 00:00:09]} g6 {[%clk 00:55:02]}
{[%emt 00:00:05]} 3. Bg2 {[%clk 00:54:49]} {[%emt 00:00:18]} Bg7 {[%clk
00:55:08]} {[%emt 00:00:04]} 4. O-O {[%clk 00:53:54]} {[%emt 00:01:05]} O-O
{[%clk 00:55:11]} {[%emt 00:00:08]} 5. c4 {[%clk 00:53:43]} {[%emt 00:00:21]}
c6 {[%clk 00:55:08]} {[%emt 00:00:13]} 6. Nc3 {[%clk 00:53:34]} {[%emt
00:00:18]} d5 {[%clk 00:55:09]} {[%emt 00:00:09]} 7. cxd5 {[%clk 00:53:32]}
{[%emt 00:00:12]} cxd5 {[%clk 00:55:12]} {[%emt 00:00:07]} 8. d4 {[%clk
00:53:38]} {[%emt 00:00:04]} Nc6 {[%clk 00:55:07]} {[%emt 00:00:16]} 9. Bf4
{[%clk 00:53:26]} {[%emt 00:00:22]} Qb6 {[%clk 00:51:29]} {[%emt 00:03:47]} 10.
Qd2 {[%clk 00:51:40]} {[%emt 00:01:56]} Bf5 {[%clk 00:49:25]} {[%emt 00:02:14]}
11. Rac1 {[%clk 00:50:47]} {[%emt 00:01:04]} Ne4 {[%clk 00:45:19]} {[%emt
00:04:15]} 12. Qd1 {[%clk 00:47:37]} {[%emt 00:03:20]} Rfd8 {[%clk 00:43:04]}
{[%emt 00:02:26]} 13. Na4 {[%clk 00:42:27]} {[%emt 00:05:20]} Qb5 {[%clk
00:36:16]} {[%emt 00:06:57]} 14. Re1 {[%clk 00:41:24]} {[%emt 00:01:14]} Rac8
{[%clk 00:35:58]} {[%emt 00:00:27]} 15. Bf1 {[%clk 00:41:10]} {[%emt 00:00:24]}
Qa5 {[%clk 00:27:40]} {[%emt 00:08:29]} 16. a3 {[%clk 00:39:41]} {[%emt
00:01:39]} b5 {[%clk 00:25:42]} {[%emt 00:02:08]} 17. Nc5 {[%clk 00:38:32]}
{[%emt 00:01:18]} Nxc5 {[%clk 00:23:23]} {[%emt 00:02:30]} 18. Rxc5 {[%clk
00:38:36]} {[%emt 00:00:05]} Bg4 {[%clk 00:21:46]} {[%emt 00:01:48]} 19. e3
{[%clk 00:36:00]} {[%emt 00:02:46]} Bxf3 {[%clk 00:18:36]} {[%emt 00:03:07]} 20.
Rc4 {[%emt 00:00:04]} 0-1

[Event "NK ABC Kwalificatie 2"]
[Site "Zoetermeer, Netherlands"]
[Date "????.??.??"]
[Round "7.15"]
[White "Yantur, Arda"]
[Black "Baarspul, Bram"]
[Result "*"]
[TimeControl "55+10"]
[WhiteFideId "8808932"]
[BlackFideId "9026171"]
[WhiteElo "1768"]
[BlackElo "1986"]

1. d4 {[%clk 00:55:11]} {[%emt 00:00:08]} Nf6 {[%clk 00:55:17]} {[%emt
00:00:03]} 2. Bf4 {[%clk 00:55:14]} {[%emt 00:00:07]} d5 {[%clk 00:55:13]}
{[%emt 00:00:13]} 3. e3 {[%clk 00:55:13]} {[%emt 00:00:11]} e6 {[%clk
00:55:01]} {[%emt 00:00:23]} 4. Nd2 {[%clk 00:55:10]} {[%emt 00:00:14]} c5
{[%clk 00:55:02]} {[%emt 00:00:08]} 5. c3 {[%clk 00:55:15]} {[%emt 00:00:06]}
Bd6 {[%clk 00:55:01]} {[%emt 00:00:11]} 6. Bg3 {[%clk 00:55:20]} {[%emt
00:00:04]} O-O {[%clk 00:54:46]} {[%emt 00:00:25]} 7. Ngf3 {[%clk 00:55:07]}
{[%emt 00:00:24]} Nc6 {[%clk 00:54:36]} {[%emt 00:00:19]} 8. Qc2 {[%clk
00:53:17]} {[%emt 00:02:00]} h6 {[%clk 00:53:49]} {[%emt 00:00:57]} 9. Be2
{[%clk 00:52:48]} {[%emt 00:00:38]} Re8 {[%clk 00:53:42]} {[%emt 00:00:18]} 10.
Ne5 {[%clk 00:52:01]} {[%emt 00:00:57]} Bxe5 {[%clk 00:52:59]} {[%emt
00:00:53]} 11. dxe5 {[%clk 00:50:40]} {[%emt 00:01:32]} Nd7 {[%clk 00:53:05]}
{[%emt 00:00:03]} 12. f4 {[%clk 00:50:34]} {[%emt 00:00:15]} Nb6 {[%clk
00:52:02]} {[%emt 00:01:14]} 13. Nf3 {[%clk 00:49:17]} {[%emt 00:01:27]} Nc4
{[%clk 00:49:50]} {[%emt 00:02:22]} 14. Bxc4 {[%clk 00:48:31]} {[%emt
00:00:57]} dxc4 {[%clk 00:49:58]} 15. Rd1 {[%clk 00:46:42]} {[%emt 00:01:58]}
Qa5 {[%clk 00:49:27]} {[%emt 00:00:42]} 16. a4 {[%clk 00:45:43]} {[%emt
00:01:10]} a6 {[%clk 00:48:30]} {[%emt 00:01:06]} 17. O-O {[%clk 00:45:03]}
{[%emt 00:00:50]} b5 {[%clk 00:48:04]} {[%emt 00:00:36]} 18. Rd6 {[%clk
00:42:20]} {[%emt 00:02:53]} Qb6 {[%clk 00:47:30]} {[%emt 00:00:43]} 19. Rfd1
{[%clk 00:37:49]} {[%emt 00:04:42]} Bb7 {[%clk 00:47:00]} {[%emt 00:00:39]} 20.
b3 {[%clk 00:34:32]} {[%emt 00:03:28]} cxb3 {[%clk 00:46:13]} {[%emt 00:00:58]}
21. Qxb3 {[%clk 00:34:32]} {[%emt 00:00:10]} c4 {[%clk 00:44:59]} {[%emt
00:01:23]} 22. Qb2 {[%clk 00:31:48]} {[%emt 00:02:55]} Qxe3+ {[%clk 00:44:32]}
{[%emt 00:00:37]} 23. Bf2 {[%clk 00:30:23]} {[%emt 00:01:35]} Qxf4 {[%clk
00:44:34]} {[%emt 00:00:06]} 24. axb5 {[%clk 00:30:31]} {[%emt 00:00:03]} Nxe5
{[%clk 00:43:28]} {[%emt 00:01:15]} 25. Nxe5 {[%clk 00:30:04]} {[%emt
00:00:39]} Qxe5 {[%clk 00:43:27]} {[%emt 00:00:10]} 26. bxa6 {[%clk 00:30:01]}
{[%emt 00:00:14]} Rxa6 {[%clk 00:41:56]} {[%emt 00:01:41]} 27. Rxa6 {[%clk
00:25:28]} {[%emt 00:04:43]} Bxa6 {[%emt 00:02:18]} 28. Qb6 {[%clk 00:23:23]}
Qb5 {[%clk 00:40:15]} {[%emt 00:01:57]} 29. Rd8 {[%clk 00:22:05]} {[%emt
00:01:28]} Rxd8 {[%clk 00:39:55]} {[%emt 00:00:30]} 30. Qxd8+ {[%clk 00:22:03]}
{[%emt 00:00:12]} Kh7 {[%clk 00:40:02]} {[%emt 00:00:02]} 31. Qd1 {[%clk
00:21:36]} {[%emt 00:00:38]} Qb3 {[%clk 00:39:52]} {[%emt 00:00:21]} 32. Qe1
{[%clk 00:21:22]} {[%emt 00:00:24]} Bb7 {[%clk 00:39:09]} {[%emt 00:00:52]} 33.
h3 {[%clk 00:21:05]} {[%emt 00:00:27]} Kg6 {[%clk 00:38:47]} {[%emt 00:00:32]}
34. Bd4 {[%clk 00:20:49]} {[%emt 00:00:26]} Kh7 {[%clk 00:36:34]} {[%emt
00:02:23]} 35. Qg3 {[%clk 00:17:27]} {[%emt 00:03:32]} Qb1+ {[%clk 00:36:38]}
{[%emt 00:00:07]} 36. Kh2 {[%clk 00:17:30]} {[%emt 00:00:07]} Qg6 {[%clk
00:36:44]} {[%emt 00:00:03]} 37. Qf2 {[%clk 00:17:29]} {[%emt 00:00:11]} f5
{[%clk 00:36:21]} {[%emt 00:00:32]} 38. Be5 {[%clk 00:17:23]} {[%emt 00:00:17]}
Bd5 {[%clk 00:35:38]} {[%emt 00:00:53]} 39. Qd2 {[%clk 00:17:05]} {[%emt
00:00:29]} Qf7 {[%clk 00:34:41]} {[%emt 00:01:06]} 40. Qd4 {[%clk 00:16:45]}
{[%emt 00:00:30]} g5 {[%clk 00:33:24]} {[%emt 00:01:27]} 41. Qf2 {[%clk
00:16:06]} {[%emt 00:00:49]} Kg6 {[%emt 00:00:38]} 42. Qc2 {[%clk 00:12:16]}
{[%emt 00:03:59]} *

[Event "NK ABC Kwalificatie 2"]
[Site "Zoetermeer, Netherlands"]
[Date "????.??.??"]
[Round "7.16"]
[White "Xu, Alex Z"]
[Black "Pathak, Raghav"]
[Result "0-1"]
[TimeControl "55+10"]
[WhiteFideId "8883292"]
[BlackFideId "8923849"]
[WhiteElo "1638"]
[BlackElo "1926"]

1. e4 {[%clk 00:55:18]} {[%emt 00:00:02]} d5 {[%clk 00:55:16]} {[%emt
00:00:05]} 2. exd5 {[%clk 00:55:24]} {[%emt 00:00:04]} Nf6 {[%clk 00:55:21]}
{[%emt 00:00:05]} 3. d4 {[%clk 00:55:30]} {[%emt 00:00:03]} Bg4 {[%clk
00:55:18]} {[%emt 00:00:13]} 4. Be2 {[%clk 00:55:14]} {[%emt 00:00:26]} Bxe2
{[%clk 00:55:14]} {[%emt 00:00:13]} 5. Nxe2 {[%clk 00:55:18]} {[%emt 00:00:07]}
Qxd5 {[%clk 00:55:14]} {[%emt 00:00:10]} 6. Nbc3 {[%clk 00:55:22]} {[%emt
00:00:05]} Qxg2 {[%clk 00:55:17]} {[%emt 00:00:06]} 7. Ng3 {[%clk 00:55:12]}
{[%emt 00:00:21]} e6 {[%clk 00:55:06]} {[%emt 00:00:21]} 8. Qe2 {[%clk
00:54:16]} {[%emt 00:01:06]} Bd6 {[%clk 00:55:09]} {[%emt 00:00:06]} 9. Qf1
{[%clk 00:53:25]} {[%emt 00:01:00]} Qf3 {[%clk 00:55:10]} {[%emt 00:00:09]} 10.
Qe2 {[%clk 00:52:43]} {[%emt 00:00:52]} Qg2 {[%clk 00:54:57]} {[%emt 00:00:22]}
11. Qf1 {[%clk 00:52:22]} {[%emt 00:00:32]} Qc6 {[%clk 00:54:58]} {[%emt
00:00:09]} 12. Bg5 {[%clk 00:52:11]} {[%emt 00:00:20]} Bb4 {[%clk 00:54:46]}
{[%emt 00:00:22]} 13. Nge2 {[%clk 00:51:25]} {[%emt 00:00:56]} Ne4 {[%clk
00:54:41]} {[%emt 00:00:16]} 14. Bd2 {[%clk 00:51:19]} {[%emt 00:00:16]} Nxd2
{[%clk 00:54:40]} {[%emt 00:00:11]} 15. Kxd2 {[%clk 00:51:28]} {[%emt
00:00:02]} Nd7 {[%clk 00:54:41]} {[%emt 00:00:09]} 16. Rd1 {[%clk 00:51:10]}
{[%emt 00:00:27]} Nf6 {[%clk 00:54:37]} {[%emt 00:00:15]} 17. Kc1 {[%clk
00:51:12]} {[%emt 00:00:08]} O-O-O {[%clk 00:54:36]} {[%emt 00:00:11]} 18. Rg1
{[%clk 00:50:56]} {[%emt 00:00:25]} g6 {[%clk 00:54:38]} {[%emt 00:00:08]} 19.
a3 {[%clk 00:50:26]} {[%emt 00:00:41]} Ba5 {[%clk 00:54:32]} {[%emt 00:00:17]}
20. Rg3 {[%emt 00:02:20]} h5 {[%clk 00:54:22]} {[%emt 00:00:02]} 21. Rgd3
{[%clk 00:48:09]} {[%emt 00:00:33]} Bxc3 {[%clk 00:54:13]} {[%emt 00:00:18]} 22.
Rxc3 {[%clk 00:48:00]} {[%emt 00:00:21]} Qd6 {[%clk 00:54:07]} {[%emt
00:00:17]} 23. Qg2 {[%clk 00:47:36]} {[%emt 00:00:33]} Nd5 {[%clk 00:54:06]}
{[%emt 00:00:11]} 24. Rb3 {[%clk 00:47:31]} {[%emt 00:00:16]} a5 {[%clk
00:54:09]} {[%emt 00:00:07]} 25. c4 {[%clk 00:47:19]} {[%emt 00:00:21]} a4
{[%clk 00:54:09]} {[%emt 00:00:10]} 26. Rb5 {[%clk 00:47:09]} {[%emt 00:00:20]}
Nb6 {[%clk 00:53:37]} {[%emt 00:00:42]} 27. c5 {[%clk 00:46:46]} {[%emt
00:00:34]} Qd5 {[%clk 00:53:22]} {[%emt 00:00:25]} 28. Qg3 {[%clk 00:46:21]}
{[%emt 00:00:34]} Qc4+ {[%clk 00:53:20]} {[%emt 00:00:12]} 29. Nc3 {[%clk
00:46:12]} {[%emt 00:00:20]} Nd5 {[%clk 00:53:20]} {[%emt 00:00:10]} 30. Ra5
{[%clk 00:45:27]} {[%emt 00:00:55]} Nxc3 {[%clk 00:52:54]} {[%emt 00:00:35]} 31.
bxc3 {[%clk 00:45:18]} {[%emt 00:00:19]} Qd5 {[%clk 00:52:38]} {[%emt
00:00:25]} 32. Rxa4 {[%clk 00:44:42]} {[%emt 00:00:47]} Qb3 {[%clk 00:52:31]}
{[%emt 00:00:17]} 33. Rb4 {[%clk 00:42:32]} {[%emt 00:02:20]} Qxa3+ {[%clk
00:52:05]} {[%emt 00:00:35]} 34. Kc2 {[%clk 00:42:28]} {[%emt 00:00:15]} Qa2+
{[%clk 00:52:04]} {[%emt 00:00:12]} 35. Rb2 {[%clk 00:41:27]} {[%emt 00:01:10]}
Qa4+ {[%clk 00:52:05]} {[%emt 00:00:09]} 36. Kd2 {[%clk 00:41:22]} {[%emt
00:00:15]} e5 {[%clk 00:51:39]} {[%emt 00:00:37]} 37. Qxe5 {[%clk 00:39:24]}
{[%emt 00:02:07]} Rhe8 {[%clk 00:51:44]} {[%emt 00:00:05]} 38. Qg3 {[%clk
00:39:11]} {[%emt 00:00:23]} Re4 {[%clk 00:51:16]} {[%emt 00:00:39]} 39. f3
{[%clk 00:37:27]} {[%emt 00:01:53]} Rexd4+ {[%clk 00:51:12]} {[%emt 00:00:15]}
40. cxd4 {[%clk 00:37:03]} {[%emt 00:00:34]} Qxd4+ {[%clk 00:51:14]} {[%emt
00:00:07]} 41. Ke2 {[%clk 00:36:29]} {[%emt 00:00:44]} Qxd1+ {[%clk 00:51:11]}
{[%emt 00:00:12]} 42. Kf2 {[%clk 00:35:15]} {[%emt 00:01:25]} Qd4+ {[%clk
00:51:13]} {[%emt 00:00:08]} 43. Kg2 {[%clk 00:35:21]} {[%emt 00:00:05]} Qxb2+
{[%clk 00:51:18]} {[%emt 00:00:04]} 44. Kh3 {[%clk 00:35:25]} {[%emt 00:00:05]}
h4 {[%clk 00:51:12]} {[%emt 00:00:17]} 45. Qg4+ {[%clk 00:35:00]} {[%emt
00:00:35]} Kb8 {[%clk 00:50:54]} {[%emt 00:00:27]} 46. Qg5 {[%clk 00:34:10]}
{[%emt 00:01:00]} Qd2 {[%clk 00:50:53]} {[%emt 00:00:11]} 47. Kxh4 {[%clk
00:33:56]} {[%emt 00:00:26]} Rh8+ {[%clk 00:50:49]} {[%emt 00:00:14]} 48. Kg4
{[%clk 00:33:52]} {[%emt 00:00:13]} f5+ {[%clk 00:50:55]} {[%emt 00:00:04]} 0-1

[Event "NK ABC Kwalificatie 2"]
[Site "Zoetermeer, Netherlands"]
[Date "????.??.??"]
[Round "7.17"]
[White "Okita, Shinsaku"]
[Black "Seth, Aakrit"]
[Result "1/2-1/2"]
[TimeControl "55+10"]
[WhiteFideId "8910748"]
[BlackFideId "9032397"]
[WhiteElo "1873"]
[BlackElo "1876"]

1. e4 {[%clk 00:55:19]} c5 {[%clk 00:55:16]} {[%emt 00:00:05]} 2. Nf3 {[%clk
00:55:26]} {[%emt 00:00:04]} g6 {[%clk 00:55:17]} {[%emt 00:00:08]} 3. d4
{[%clk 00:55:30]} {[%emt 00:00:05]} cxd4 {[%clk 00:55:26]} {[%emt 00:00:02]} 4.
Nxd4 {[%clk 00:55:34]} {[%emt 00:00:05]} Bg7 {[%clk 00:55:34]} {[%emt
00:00:02]} 5. Be3 {[%clk 00:55:29]} {[%emt 00:00:16]} Nc6 {[%clk 00:55:35]}
{[%emt 00:00:08]} 6. Nc3 {[%clk 00:55:32]} {[%emt 00:00:08]} Nf6 {[%clk
00:55:37]} {[%emt 00:00:08]} 7. Be2 {[%clk 00:55:33]} {[%emt 00:00:09]} O-O
{[%clk 00:55:16]} {[%emt 00:00:31]} 8. Qd2 {[%clk 00:55:32]} {[%emt 00:00:11]}
d5 {[%clk 00:54:25]} {[%emt 00:01:00]} 9. exd5 {[%clk 00:53:52]} {[%emt
00:01:51]} Nxd5 {[%clk 00:54:16]} {[%emt 00:00:19]} 10. Nxc6 {[%clk 00:53:19]}
{[%emt 00:00:43]} bxc6 {[%clk 00:54:07]} {[%emt 00:00:19]} 11. Nxd5 {[%clk
00:52:55]} {[%emt 00:00:34]} cxd5 {[%clk 00:53:43]} {[%emt 00:00:33]} 12. c3
{[%clk 00:52:35]} {[%emt 00:00:30]} Bb7 {[%clk 00:51:36]} {[%emt 00:02:16]} 13.
O-O {[%clk 00:51:54]} {[%emt 00:00:51]} Qc7 {[%clk 00:50:09]} {[%emt 00:01:38]}
14. Bh6 {[%emt 00:02:22]} Rad8 {[%clk 00:48:38]} {[%emt 00:01:33]} 15. Bxg7
{[%clk 00:49:34]} {[%emt 00:00:25]} Kxg7 {[%clk 00:48:43]} {[%emt 00:00:06]} 16.
Qd4+ {[%clk 00:46:55]} {[%emt 00:02:49]} e5 {[%clk 00:45:41]} {[%emt 00:03:13]}
17. Qxa7 {[%clk 00:46:37]} {[%emt 00:00:27]} Rd6 {[%clk 00:41:38]} {[%emt
00:04:11]} 18. Qe3 {[%clk 00:46:04]} {[%emt 00:00:45]} Re6 {[%clk 00:40:09]}
{[%emt 00:01:40]} 19. a4 {[%clk 00:43:13]} {[%emt 00:03:01]} f5 {[%clk
00:39:35]} {[%emt 00:00:44]} 20. f4 {[%clk 00:40:00]} {[%emt 00:03:24]} Rfe8
{[%clk 00:38:06]} {[%emt 00:01:38]} 21. Bb5 {[%clk 00:39:44]} {[%emt 00:00:27]}
R8e7 {[%clk 00:36:25]} {[%emt 00:01:50]} 22. Rae1 {[%clk 00:36:55]} {[%emt
00:02:59]} Kf7 {[%clk 00:32:52]} {[%emt 00:03:42]} 23. fxe5 {[%clk 00:30:25]}
{[%emt 00:06:41]} Rxe5 {[%clk 00:31:21]} {[%emt 00:01:40]} 24. Qf2 {[%clk
00:28:11]} {[%emt 00:02:25]} Re4 {[%clk 00:21:49]} {[%emt 00:09:41]} 25. Bd3
{[%clk 00:26:48]} {[%emt 00:01:34]} Rxe1 {[%clk 00:13:41]} {[%emt 00:08:18]} 26.
Rxe1 {[%clk 00:26:51]} {[%emt 00:00:07]} Rxe1+ {[%clk 00:13:50]} {[%emt
00:00:02]} 27. Qxe1 {[%clk 00:26:54]} {[%emt 00:00:06]} Bc6 {[%clk 00:13:42]}
{[%emt 00:00:18]} 28. Qg3 {[%clk 00:25:29]} {[%emt 00:01:35]} Qa7+ {[%clk
00:11:24]} {[%emt 00:02:31]} 29. Kf1 {[%emt 00:01:12]} 1/2-1/2